[Event "Early-Titled-Tuesday-Blitz-August-29-2023"]
[Site "Chess.com"]
[Date "2023.08.29"]
[Round "5"]
[White "ViktoriyaTarasova"]
[Black "Goffredo_Fofi"]
[Result "1-0"]
[WhiteElo "2419"]
[BlackElo "2545"]
[TimeControl "180+1"]
[EndTime "8:55:24 PDT"]
[Termination "ViktoriyaTarasova won by checkmate"]

1. d4 {[%clk 0:03:00.9]} 1... g6 {[%clk 0:02:20.1]} 2. c4 {[%clk 0:02:56]} 2...
Bg7 {[%clk 0:02:20.5]} 3. e4 {[%clk 0:02:53.6]} 3... d6 {[%clk 0:02:20.9]} 4.
Nc3 {[%clk 0:02:42]} 4... c5 {[%clk 0:02:21.4]} 5. Nge2 {[%clk 0:02:39.7]} 5...
Nc6 {[%clk 0:02:17.4]} 6. d5 {[%clk 0:02:37.3]} 6... Nd4 {[%clk 0:02:10.4]} 7.
Nxd4 {[%clk 0:02:37.2]} 7... Bxd4 {[%clk 0:02:05.4]} 8. Be2 {[%clk 0:02:34.1]}
8... e6 {[%clk 0:02:04.6]} 9. O-O {[%clk 0:02:33.8]} 9... a6 {[%clk 0:01:50.3]}
10. a4 {[%clk 0:02:31.3]} 10... Ne7 {[%clk 0:01:44.6]} 11. Be3 {[%clk
0:02:22.3]} 11... Bxe3 {[%clk 0:01:35.3]} 12. fxe3 {[%clk 0:02:22.1]} 12... O-O
{[%clk 0:01:30.6]} 13. a5 {[%clk 0:01:58.4]} 13... e5 {[%clk 0:01:23.2]} 14. g4
{[%clk 0:01:50.3]} 14... Bd7 {[%clk 0:01:12.7]} 15. Kh1 {[%clk 0:01:47]} 15...
Kg7 {[%clk 0:00:58.6]} 16. g5 {[%clk 0:01:45]} 16... Ng8 {[%clk 0:00:51.6]} 17.
Rg1 {[%clk 0:01:31.4]} 17... f6 {[%clk 0:00:47.8]} 18. h4 {[%clk 0:01:25]} 18...
fxg5 {[%clk 0:00:47.8]} 19. hxg5 {[%clk 0:01:25]} 19... h6 {[%clk 0:00:45.7]}
20. Qe1 {[%clk 0:01:11.9]} 20... hxg5 {[%clk 0:00:40.9]} 21. Kg2 {[%clk
0:01:04.5]} 21... Nh6 {[%clk 0:00:31.7]} 22. Qg3 {[%clk 0:01:02.3]} 22... Qe7
{[%clk 0:00:23.3]} 23. Rh1 {[%clk 0:00:58.1]} 23... Rh8 {[%clk 0:00:21.4]} 24.
Rab1 {[%clk 0:00:58.3]} 24... Nf7 {[%clk 0:00:14.4]} 25. Bg4 {[%clk 0:00:44.3]}
25... Rxh1 {[%clk 0:00:14]} 26. Rxh1 {[%clk 0:00:42.8]} 26... Bxg4 {[%clk
0:00:12.8]} 27. Qxg4 {[%clk 0:00:42.5]} 27... Rh8 {[%clk 0:00:12.5]} 28. Rxh8
{[%clk 0:00:39.2]} 28... Kxh8 {[%clk 0:00:13.4]} 29. Qe6 {[%clk 0:00:34.8]}
29... Qf8 {[%clk 0:00:10.9]} 30. Qxg6 {[%clk 0:00:32]} 30... Qg7 {[%clk
0:00:10.7]} 31. Qe6 {[%clk 0:00:28.9]} 31... Kh7 {[%clk 0:00:09]} 32. Ne2 {[%clk
0:00:28.1]} 32... Qg6 {[%clk 0:00:08.1]} 33. Qe7 {[%clk 0:00:26.6]} 33... g4
{[%clk 0:00:07.1]} 34. Ng3 {[%clk 0:00:25.9]} 34... Kg8 {[%clk 0:00:07.1]} 35.
Nf5 {[%clk 0:00:22.8]} 35... Ng5 {[%clk 0:00:06.4]} 36. Qd8+ {[%clk 0:00:15.2]}
36... Kh7 {[%clk 0:00:06.7]} 37. Qd7+ {[%clk 0:00:15.7]} 37... Kh8 {[%clk
0:00:05.8]} 38. Qc8+ {[%clk 0:00:13.6]} 38... Kh7 {[%clk 0:00:05.5]} 39. Qxb7+
{[%clk 0:00:13.5]} 39... Kh8 {[%clk 0:00:04.9]} 40. Qc8+ {[%clk 0:00:13.8]}
40... Kh7 {[%clk 0:00:05.2]} 41. Qd7+ {[%clk 0:00:14.2]} 41... Kh8 {[%clk
0:00:05.5]} 42. Qxd6 {[%clk 0:00:13.8]} 42... Qh5 {[%clk 0:00:03.3]} 43. Qf8+
{[%clk 0:00:12.7]} 43... Kh7 {[%clk 0:00:03.7]} 44. Qg7# {[%clk 0:00:12.8]} 1-0

[Event "Early-Titled-Tuesday-Blitz-August-29-2023"]
[Site "Chess.com"]
[Date "2023.08.29"]
[Round "5"]
[White "KNVB"]
[Black "kecalk"]
[Result "1-0"]
[WhiteElo "2787"]
[BlackElo "2482"]
[TimeControl "180+1"]
[EndTime "8:55:25 PDT"]
[Termination "KNVB won by resignation"]

1. d4 {[%clk 0:02:44.6]} 1... Nf6 {[%clk 0:02:56.9]} 2. Bf4 {[%clk 0:02:44.1]}
2... d5 {[%clk 0:02:55.7]} 3. e3 {[%clk 0:02:44.1]} 3... c5 {[%clk 0:02:55.4]}
4. c3 {[%clk 0:02:40.7]} 4... e6 {[%clk 0:02:50.9]} 5. Nf3 {[%clk 0:02:40.5]}
5... Bd6 {[%clk 0:02:51]} 6. Nbd2 {[%clk 0:02:40.5]} 6... O-O {[%clk 0:02:46.8]}
7. Bd3 {[%clk 0:02:13.2]} 7... Bxf4 {[%clk 0:02:17.9]} 8. exf4 {[%clk
0:02:14.1]} 8... b6 {[%clk 0:02:18.1]} 9. Qe2 {[%clk 0:02:10.1]} 9... a5 {[%clk
0:02:17.5]} 10. O-O {[%clk 0:01:39.3]} 10... Ba6 {[%clk 0:02:17.3]} 11. Bxa6
{[%clk 0:01:38.3]} 11... Rxa6 {[%clk 0:02:16.6]} 12. Rfe1 {[%clk 0:01:37.2]}
12... Ra7 {[%clk 0:02:11.5]} 13. g3 {[%clk 0:01:19.7]} 13... Nc6 {[%clk
0:02:09.1]} 14. Qe3 {[%clk 0:00:51.6]} 14... Ng4 {[%clk 0:01:47.3]} 15. Qd3
{[%clk 0:00:51]} 15... c4 {[%clk 0:01:43.8]} 16. Qc2 {[%clk 0:00:46.5]} 16... b5
{[%clk 0:01:41.3]} 17. f5 {[%clk 0:00:45.6]} 17... Qd6 {[%clk 0:01:26.3]} 18.
fxe6 {[%clk 0:00:30.9]} 18... fxe6 {[%clk 0:01:05.7]} 19. Ng5 {[%clk 0:00:31.2]}
19... g6 {[%clk 0:01:02.7]} 20. f4 {[%clk 0:00:12.2]} 20... Rf6 {[%clk
0:00:42.1]} 21. Ndf3 {[%clk 0:00:07.6]} 21... h6 {[%clk 0:00:37.2]} 22. Ne5
{[%clk 0:00:06.3]} 22... Ncxe5 {[%clk 0:00:11.5]} 23. fxe5 {[%clk 0:00:06]}
23... Qf8 {[%clk 0:00:05.7]} 24. exf6 {[%clk 0:00:05.3]} 24... Qxf6 {[%clk
0:00:05.8]} 25. Nh3 {[%clk 0:00:04.9]} 25... Rf7 {[%clk 0:00:03.6]} 26. Qe2
{[%clk 0:00:04.8]} 26... h5 {[%clk 0:00:01.4]} 27. Rf1 {[%clk 0:00:05.4]} 27...
Qg7 {[%clk 0:00:01.9]} 28. Rxf7 {[%clk 0:00:05.7]} 28... Qxf7 {[%clk 0:00:02.8]}
29. Ng5 {[%clk 0:00:04.8]} 29... Qc7 {[%clk 0:00:01.6]} 30. Qxe6+ {[%clk
0:00:04.9]} 30... Kg7 {[%clk 0:00:02.1]} 31. Rf1 {[%clk 0:00:02.6]} 31... Kh6
{[%clk 0:00:01.5]} 32. Nf7+ {[%clk 0:00:02.8]} 32... Kg7 {[%clk 0:00:01.6]} 33.
Ne5 {[%clk 0:00:03.4]} 33... Nxe5 {[%clk 0:00:01.9]} 34. Qxe5+ {[%clk
0:00:03.9]} 34... Qxe5 {[%clk 0:00:02.5]} 35. dxe5 {[%clk 0:00:04.8]} 35... b4
{[%clk 0:00:03.2]} 36. Rf6 {[%clk 0:00:03.9]} 36... d4 {[%clk 0:00:01.9]} 37.
cxd4 {[%clk 0:00:04]} 37... a4 {[%clk 0:00:02.5]} 38. Rc6 {[%clk 0:00:02.8]}
38... c3 {[%clk 0:00:02.2]} 39. bxc3 {[%clk 0:00:03.3]} 39... b3 {[%clk
0:00:03.1]} 40. axb3 {[%clk 0:00:03.8]} 40... axb3 {[%clk 0:00:04]} 41. Rb6
{[%clk 0:00:04.2]} 1-0

[Event "Early-Titled-Tuesday-Blitz-August-29-2023"]
[Site "Chess.com"]
[Date "2023.08.29"]
[Round "5"]
[White "M1711"]
[Black "a-z30"]
[Result "1-0"]
[WhiteElo "2540"]
[BlackElo "2359"]
[TimeControl "180+1"]
[EndTime "8:55:25 PDT"]
[Termination "M1711 won on time"]

1. e4 {[%clk 0:02:56.4]} 1... d6 {[%clk 0:03:00.9]} 2. d4 {[%clk 0:02:56.4]}
2... Nf6 {[%clk 0:03:01.3]} 3. Nc3 {[%clk 0:02:56.9]} 3... g6 {[%clk 0:03:01.9]}
4. f4 {[%clk 0:02:56.8]} 4... Bg7 {[%clk 0:03:02.6]} 5. Nf3 {[%clk 0:02:57]}
5... O-O {[%clk 0:03:03.2]} 6. e5 {[%clk 0:02:57.2]} 6... dxe5 {[%clk
0:03:02.8]} 7. fxe5 {[%clk 0:02:58.1]} 7... Nd5 {[%clk 0:03:02.8]} 8. Bc4 {[%clk
0:02:58.8]} 8... Nxc3 {[%clk 0:03:02.5]} 9. bxc3 {[%clk 0:02:59.7]} 9... c5
{[%clk 0:03:02.7]} 10. Be3 {[%clk 0:02:58.9]} 10... Bg4 {[%clk 0:03:01]} 11. h3
{[%clk 0:02:51.8]} 11... cxd4 {[%clk 0:02:54.3]} 12. cxd4 {[%clk 0:02:48.3]}
12... Bxf3 {[%clk 0:02:36.4]} 13. Qxf3 {[%clk 0:02:48]} 13... Nc6 {[%clk
0:02:36.9]} 14. c3 {[%clk 0:02:47.3]} 14... Rc8 {[%clk 0:02:21.7]} 15. O-O
{[%clk 0:02:03.6]} 15... Nxe5 {[%clk 0:02:13.7]} 16. dxe5 {[%clk 0:02:01.8]}
16... Rxc4 {[%clk 0:02:12.9]} 17. Qxb7 {[%clk 0:02:00.2]} 17... a5 {[%clk
0:01:32.7]} 18. Bd4 {[%clk 0:01:57.3]} 18... Rxd4 {[%clk 0:01:31.9]} 19. cxd4
{[%clk 0:01:56.7]} 19... Qxd4+ {[%clk 0:01:31.4]} 20. Kh1 {[%clk 0:01:57.1]}
20... e6 {[%clk 0:01:19.1]} 21. Qb5 {[%clk 0:01:42.2]} 21... Qxe5 {[%clk
0:01:16.8]} 22. Qxe5 {[%clk 0:01:37.8]} 22... Bxe5 {[%clk 0:01:16.1]} 23. Rab1
{[%clk 0:01:38.4]} 23... a4 {[%clk 0:00:56.6]} 24. Rb7 {[%clk 0:01:26.3]} 24...
a3 {[%clk 0:00:55.6]} 25. Ra7 {[%clk 0:01:25.4]} 25... Bb2 {[%clk 0:00:54.7]}
26. g3 {[%clk 0:01:22.1]} 26... h5 {[%clk 0:00:54.8]} 27. Kg2 {[%clk 0:01:21.5]}
27... Kg7 {[%clk 0:00:55.1]} 28. Rf4 {[%clk 0:01:15.6]} 28... g5 {[%clk
0:00:51.3]} 29. Rf3 {[%clk 0:01:13.8]} 29... Kg6 {[%clk 0:00:50.7]} 30. Rf1
{[%clk 0:01:04.4]} 30... f6 {[%clk 0:00:46.4]} 31. Rd1 {[%clk 0:00:56.2]} 31...
Rc8 {[%clk 0:00:41.6]} 32. Rd2 {[%clk 0:00:55]} 32... Rc6 {[%clk 0:00:27.6]} 33.
Rad7 {[%clk 0:00:53.6]} 33... e5 {[%clk 0:00:20]} 34. R7d6 {[%clk 0:00:41]}
34... Rxd6 {[%clk 0:00:18.6]} 35. Rxd6 {[%clk 0:00:41.9]} 35... g4 {[%clk
0:00:17.9]} 36. h4 {[%clk 0:00:37.5]} 36... Kf5 {[%clk 0:00:15.4]} 37. Rd8
{[%clk 0:00:36.6]} 37... Ke4 {[%clk 0:00:14.8]} 38. Rh8 {[%clk 0:00:32.7]} 38...
f5 {[%clk 0:00:14.9]} 39. Rxh5 {[%clk 0:00:32.4]} 39... f4 {[%clk 0:00:14.9]}
40. Rg5 {[%clk 0:00:27.5]} 40... f3+ {[%clk 0:00:10.1]} 41. Kf1 {[%clk
0:00:27.6]} 41... Kd3 {[%clk 0:00:06.2]} 42. Rxg4 {[%clk 0:00:18.3]} 42... e4
{[%clk 0:00:06.5]} 43. Rf4 {[%clk 0:00:19.1]} 43... Bc3 {[%clk 0:00:04.8]} 44.
h5 {[%clk 0:00:18.1]} 44... Be5 {[%clk 0:00:03.4]} 45. Rf5 {[%clk 0:00:14.4]}
1-0

[Event "Early-Titled-Tuesday-Blitz-August-29-2023"]
[Site "Chess.com"]
[Date "2023.08.29"]
[Round "5"]
[White "DawidCzerw"]
[Black "Legendinunknown"]
[Result "1/2-1/2"]
[WhiteElo "2494"]
[BlackElo "2792"]
[TimeControl "180+1"]
[EndTime "8:55:26 PDT"]
[Termination "Game drawn by repetition"]

1. e4 {[%clk 0:02:53.8]} 1... c5 {[%clk 0:02:59.4]} 2. Nf3 {[%clk 0:02:52.6]}
2... d6 {[%clk 0:02:57.5]} 3. d4 {[%clk 0:02:52.9]} 3... cxd4 {[%clk 0:02:58.4]}
4. Nxd4 {[%clk 0:02:53.7]} 4... Nf6 {[%clk 0:02:58.8]} 5. Nc3 {[%clk 0:02:54.4]}
5... Nc6 {[%clk 0:02:59.1]} 6. f3 {[%clk 0:02:54.1]} 6... e5 {[%clk 0:02:58.5]}
7. Nb3 {[%clk 0:02:53.5]} 7... Be7 {[%clk 0:02:58.8]} 8. Be3 {[%clk 0:02:53.3]}
8... O-O {[%clk 0:02:58.7]} 9. Qd2 {[%clk 0:02:52.4]} 9... a5 {[%clk 0:02:58.9]}
10. Bb5 {[%clk 0:02:52.3]} 10... Be6 {[%clk 0:02:58.3]} 11. O-O-O {[%clk
0:02:48.9]} 11... Na7 {[%clk 0:02:52.7]} 12. a4 {[%clk 0:02:45.1]} 12... Nxb5
{[%clk 0:02:50.9]} 13. Nxb5 {[%clk 0:02:44]} 13... d5 {[%clk 0:02:51.1]} 14. Bc5
{[%clk 0:02:33.6]} 14... b6 {[%clk 0:02:41]} 15. Bxe7 {[%clk 0:02:23.5]} 15...
Qxe7 {[%clk 0:02:41.9]} 16. exd5 {[%clk 0:02:11.8]} 16... Bxd5 {[%clk
0:02:42.8]} 17. Kb1 {[%clk 0:02:05.7]} 17... Bxb3 {[%clk 0:02:37.4]} 18. cxb3
{[%clk 0:02:04.5]} 18... e4 {[%clk 0:02:36.8]} 19. Rhe1 {[%clk 0:01:56.7]} 19...
Rad8 {[%clk 0:02:35]} 20. Qe3 {[%clk 0:01:53.4]} 20... Rxd1+ {[%clk 0:02:34.1]}
21. Rxd1 {[%clk 0:01:54.3]} 21... Re8 {[%clk 0:02:29.2]} 22. fxe4 {[%clk
0:01:44.5]} 22... Qxe4+ {[%clk 0:02:22.2]} 23. Qxe4 {[%clk 0:01:44]} 23... Nxe4
{[%clk 0:02:23.1]} 24. Rd7 {[%clk 0:01:34.5]} 24... h5 {[%clk 0:02:19]} 25. Rb7
{[%clk 0:01:17]} 25... Re6 {[%clk 0:02:16.1]} 26. Nc7 {[%clk 0:00:59.8]} 26...
Rd6 {[%clk 0:02:09.4]} 27. Na8 {[%clk 0:00:59.2]} 27... Rd2 {[%clk 0:02:07.4]}
28. Nxb6 {[%clk 0:00:51]} 28... Rxg2 {[%clk 0:01:57.9]} 29. b4 {[%clk
0:00:48.1]} 29... axb4 {[%clk 0:01:51.1]} 30. Nc4 {[%clk 0:00:25.1]} 30... Rxh2
{[%clk 0:01:39.3]} 31. a5 {[%clk 0:00:23.5]} 31... Nc5 {[%clk 0:01:39.1]} 32.
Rxb4 {[%clk 0:00:18]} 32... Rh1+ {[%clk 0:01:28.9]} 33. Ka2 {[%clk 0:00:17.6]}
33... Rc1 {[%clk 0:01:28.4]} 34. Ne5 {[%clk 0:00:11.5]} 34... f6 {[%clk
0:01:25.1]} 35. Nf3 {[%clk 0:00:09.2]} 35... g5 {[%clk 0:01:25]} 36. Rb8+ {[%clk
0:00:08.1]} 36... Kg7 {[%clk 0:01:24.4]} 37. b4 {[%clk 0:00:09]} 37... Ne4
{[%clk 0:01:10.1]} 38. a6 {[%clk 0:00:07.6]} 38... Rc2+ {[%clk 0:01:08.6]} 39.
Kb1 {[%clk 0:00:06.4]} 39... Rc3 {[%clk 0:01:04]} 40. a7 {[%clk 0:00:06]} 40...
Ra3 {[%clk 0:01:03.8]} 41. a8=Q {[%clk 0:00:06.4]} 41... Rxa8 {[%clk 0:01:04.5]}
42. Rxa8 {[%clk 0:00:07.3]} 42... g4 {[%clk 0:01:05]} 43. Nh4 {[%clk 0:00:07.6]}
43... Kh6 {[%clk 0:01:04.6]} 44. Kc2 {[%clk 0:00:07.5]} 44... Kg5 {[%clk
0:01:04.6]} 45. Ng2 {[%clk 0:00:07.6]} 45... h4 {[%clk 0:01:03.2]} 46. Rg8+
{[%clk 0:00:07.6]} 46... Kf5 {[%clk 0:01:03.1]} 47. Nxh4+ {[%clk 0:00:07.6]}
47... Kf4 {[%clk 0:01:04]} 48. Kd3 {[%clk 0:00:07.1]} 48... g3 {[%clk
0:01:01.3]} 49. Ng2+ {[%clk 0:00:07]} 49... Kf3 {[%clk 0:01:01.7]} 50. Ne1+
{[%clk 0:00:07.5]} 50... Kf4 {[%clk 0:01:01.9]} 51. b5 {[%clk 0:00:05.9]} 51...
f5 {[%clk 0:01:02.2]} 52. b6 {[%clk 0:00:05.9]} 52... Nc5+ {[%clk 0:01:02.1]}
53. Kc4 {[%clk 0:00:05.9]} 53... Nb7 {[%clk 0:01:03]} 54. Kb5 {[%clk 0:00:06.1]}
54... Ke3 {[%clk 0:01:02.5]} 55. Rg4 {[%clk 0:00:05.9]} 55... fxg4 {[%clk
0:01:01.7]} 56. Ng2+ {[%clk 0:00:04.2]} 56... Kf2 {[%clk 0:01:00.5]} 57. Nh4
{[%clk 0:00:03.1]} 57... g2 {[%clk 0:01:00.5]} 58. Nxg2 {[%clk 0:00:03.3]} 58...
Kxg2 {[%clk 0:01:01.4]} 59. Kc6 {[%clk 0:00:03.7]} 59... Na5+ {[%clk 0:01:01.5]}
60. Kb5 {[%clk 0:00:04.1]} 60... Nb7 {[%clk 0:01:01.6]} 61. Kc6 {[%clk
0:00:04.6]} 61... Nd8+ {[%clk 0:00:58.3]} 62. Kd7 {[%clk 0:00:03.8]} 62... Nb7
{[%clk 0:00:57.1]} 63. Kc6 {[%clk 0:00:04.2]} 1/2-1/2

[Event "Early-Titled-Tuesday-Blitz-August-29-2023"]
[Site "Chess.com"]
[Date "2023.08.29"]
[Round "5"]
[White "cycygogne"]
[Black "FARIZA2018"]
[Result "0-1"]
[WhiteElo "2244"]
[BlackElo "2515"]
[TimeControl "180+1"]
[EndTime "8:55:26 PDT"]
[Termination "FARIZA2018 won on time"]

1. e4 {[%clk 0:03:00.9]} 1... e5 {[%clk 0:02:59.6]} 2. Nf3 {[%clk 0:03:00.8]}
2... Nc6 {[%clk 0:02:59.7]} 3. Bc4 {[%clk 0:03:01.1]} 3... Nf6 {[%clk
0:02:59.3]} 4. d4 {[%clk 0:02:58.5]} 4... exd4 {[%clk 0:02:57.2]} 5. Ng5 {[%clk
0:02:59.1]} 5... Ne5 {[%clk 0:02:48.4]} 6. Bb3 {[%clk 0:02:54.2]} 6... h6 {[%clk
0:02:48]} 7. f4 {[%clk 0:02:54.3]} 7... hxg5 {[%clk 0:02:24.5]} 8. fxe5 {[%clk
0:02:54.5]} 8... Nxe4 {[%clk 0:02:24.5]} 9. Qxd4 {[%clk 0:02:54.8]} 9... Nc5
{[%clk 0:02:24.7]} 10. Be3 {[%clk 0:02:48.3]} 10... Nxb3 {[%clk 0:02:23.1]} 11.
axb3 {[%clk 0:02:48.6]} 11... d6 {[%clk 0:02:22.5]} 12. Nc3 {[%clk 0:02:45.3]}
12... dxe5 {[%clk 0:02:08.9]} 13. Qxe5+ {[%clk 0:02:46.2]} 13... Be6 {[%clk
0:01:54.5]} 14. Bxg5 {[%clk 0:02:37.2]} 14... Qd6 {[%clk 0:01:50.4]} 15. Qxd6
{[%clk 0:02:32.8]} 15... Bxd6 {[%clk 0:01:50.3]} 16. O-O-O {[%clk 0:02:24.7]}
16... f6 {[%clk 0:01:41.1]} 17. Be3 {[%clk 0:01:59.1]} 17... Kf7 {[%clk
0:01:40]} 18. g3 {[%clk 0:01:57.8]} 18... a6 {[%clk 0:01:39.7]} 19. Ne4 {[%clk
0:01:56.7]} 19... Be5 {[%clk 0:01:29.3]} 20. Nc5 {[%clk 0:01:49.4]} 20... Bc8
{[%clk 0:01:29.1]} 21. Nd3 {[%clk 0:01:29.7]} 21... Bd6 {[%clk 0:01:29]} 22. Bf4
{[%clk 0:01:25.9]} 22... Bxf4+ {[%clk 0:01:27.2]} 23. Nxf4 {[%clk 0:01:26.4]}
23... Bg4 {[%clk 0:01:27.2]} 24. Rd2 {[%clk 0:01:17.3]} 24... Rad8 {[%clk
0:01:23.2]} 25. h4 {[%clk 0:01:09.5]} 25... Rhe8 {[%clk 0:01:17.1]} 26. Rxd8
{[%clk 0:01:05.5]} 26... Rxd8 {[%clk 0:01:17.1]} 27. Re1 {[%clk 0:01:06.1]}
27... Rd6 {[%clk 0:01:07.7]} 28. c4 {[%clk 0:00:49.8]} 28... b6 {[%clk
0:01:05.2]} 29. Kc2 {[%clk 0:00:48.9]} 29... Bf5+ {[%clk 0:01:03.8]} 30. Kc3
{[%clk 0:00:47]} 30... c5 {[%clk 0:01:00.6]} 31. Nd5 {[%clk 0:00:44.5]} 31...
Be6 {[%clk 0:00:54.1]} 32. Nf4 {[%clk 0:00:36]} 32... a5 {[%clk 0:00:48]} 33.
Nxe6 {[%clk 0:00:19.6]} 33... Rxe6 {[%clk 0:00:48.1]} 34. Rd1 {[%clk 0:00:16.8]}
34... Kg6 {[%clk 0:00:44.1]} 35. Rd7 {[%clk 0:00:14.6]} 35... Kh6 {[%clk
0:00:41.9]} 36. Kd3 {[%clk 0:00:13.4]} 36... g5 {[%clk 0:00:41.5]} 37. hxg5+
{[%clk 0:00:12.3]} 37... Kxg5 {[%clk 0:00:41.4]} 38. Rg7+ {[%clk 0:00:09.8]}
38... Kf5 {[%clk 0:00:40.9]} 39. Rg8 {[%clk 0:00:07.6]} 39... Re1 {[%clk
0:00:31.3]} 40. Kd2 {[%clk 0:00:06.3]} 40... Rb1 {[%clk 0:00:30.7]} 41. Kc2
{[%clk 0:00:06.3]} 41... Rg1 {[%clk 0:00:27.6]} 42. Rg7 {[%clk 0:00:03.1]} 42...
Rg2+ {[%clk 0:00:27.3]} 43. Kc3 {[%clk 0:00:03.4]} 43... Ke4 {[%clk 0:00:27.1]}
0-1

[Event "Early-Titled-Tuesday-Blitz-August-29-2023"]
[Site "Chess.com"]
[Date "2023.08.29"]
[Round "5"]
[White "KChor05TTV"]
[Black "Kirill_Klukin"]
[Result "0-1"]
[WhiteElo "2594"]
[BlackElo "2808"]
[TimeControl "180+1"]
[EndTime "8:55:27 PDT"]
[Termination "Kirill_Klukin won on time"]

1. e4 {[%clk 0:03:00.9]} 1... c5 {[%clk 0:02:58.1]} 2. Nf3 {[%clk 0:03:00.4]}
2... g6 {[%clk 0:02:57.8]} 3. d4 {[%clk 0:03:00]} 3... cxd4 {[%clk 0:02:58.2]}
4. Qxd4 {[%clk 0:02:56.4]} 4... Nf6 {[%clk 0:02:58.2]} 5. Nc3 {[%clk 0:02:56.1]}
5... Nc6 {[%clk 0:02:58.1]} 6. Qa4 {[%clk 0:02:55.7]} 6... d6 {[%clk 0:02:58.5]}
7. e5 {[%clk 0:02:54.8]} 7... dxe5 {[%clk 0:02:59.4]} 8. Nxe5 {[%clk 0:02:55.6]}
8... Bd7 {[%clk 0:03:00]} 9. Nxd7 {[%clk 0:02:46.5]} 9... Nxd7 {[%clk
0:03:00.9]} 10. Bb5 {[%clk 0:02:40.8]} 10... Bg7 {[%clk 0:03:00.9]} 11. Bxc6
{[%clk 0:02:29.7]} 11... bxc6 {[%clk 0:03:01.8]} 12. Qxc6 {[%clk 0:02:30.3]}
12... Rc8 {[%clk 0:02:57.2]} 13. Qf3 {[%clk 0:02:30.1]} 13... Bxc3+ {[%clk
0:02:56.4]} 14. bxc3 {[%clk 0:02:28.2]} 14... O-O {[%clk 0:02:57.1]} 15. O-O
{[%clk 0:02:27.1]} 15... Qc7 {[%clk 0:02:55.2]} 16. Bd2 {[%clk 0:02:06.4]} 16...
Ne5 {[%clk 0:02:51.5]} 17. Qg3 {[%clk 0:02:04.8]} 17... Nc4 {[%clk 0:02:50.4]}
18. Bf4 {[%clk 0:01:57.2]} 18... Qc6 {[%clk 0:02:40.9]} 19. Rfe1 {[%clk
0:01:50.4]} 19... Rfe8 {[%clk 0:02:29.4]} 20. Rad1 {[%clk 0:01:37.6]} 20... Qa4
{[%clk 0:02:04.2]} 21. h4 {[%clk 0:01:26.9]} 21... Qxc2 {[%clk 0:01:43.6]} 22.
Rd7 {[%clk 0:01:25.8]} 22... Qxa2 {[%clk 0:00:43.6]} 23. Rexe7 {[%clk
0:01:18.3]} 23... Rxe7 {[%clk 0:00:42.4]} 24. Rxe7 {[%clk 0:01:19.2]} 24... Nb6
{[%clk 0:00:31.6]} 25. Qg5 {[%clk 0:01:04.2]} 25... Nd5 {[%clk 0:00:20.3]} 26.
Be5 {[%clk 0:00:25]} 26... Nxe7 {[%clk 0:00:19.3]} 27. Qf6 {[%clk 0:00:25]}
27... Kf8 {[%clk 0:00:18]} 28. Bd6 {[%clk 0:00:25.1]} 28... Qa1+ {[%clk
0:00:12.9]} 29. Kh2 {[%clk 0:00:20.4]} 29... Qxc3 {[%clk 0:00:13]} 30. Qxe7+
{[%clk 0:00:17.2]} 30... Kg8 {[%clk 0:00:13.4]} 31. Be5 {[%clk 0:00:18.1]} 31...
Qc6 {[%clk 0:00:12.7]} 32. Bd6 {[%clk 0:00:13.2]} 32... a5 {[%clk 0:00:10.7]}
33. h5 {[%clk 0:00:12.1]} 33... Re8 {[%clk 0:00:10.9]} 34. Qf6 {[%clk
0:00:10.8]} 34... Re6 {[%clk 0:00:11.6]} 35. Qd8+ {[%clk 0:00:10.2]} 35... Qe8
{[%clk 0:00:12.4]} 36. Qc7 {[%clk 0:00:07.6]} 36... gxh5 {[%clk 0:00:10.2]} 37.
Bg3 {[%clk 0:00:05.2]} 37... a4 {[%clk 0:00:10.6]} 38. Qf4 {[%clk 0:00:04.8]}
38... Rg6 {[%clk 0:00:11.1]} 39. Bh4 {[%clk 0:00:02.6]} 39... h6 {[%clk
0:00:11.3]} 40. g3 {[%clk 0:00:02.3]} 40... a3 {[%clk 0:00:10.1]} 41. Qf5 {[%clk
0:00:02.5]} 41... a2 {[%clk 0:00:09.8]} 42. Bf6 {[%clk 0:00:03.3]} 42... Qe6
{[%clk 0:00:08.7]} 0-1

[Event "Early-Titled-Tuesday-Blitz-August-29-2023"]
[Site "Chess.com"]
[Date "2023.08.29"]
[Round "5"]
[White "MathiasWomacka"]
[Black "jinbojinbo"]
[Result "1/2-1/2"]
[WhiteElo "2470"]
[BlackElo "2674"]
[TimeControl "180+1"]
[EndTime "8:55:29 PDT"]
[Termination "Game drawn by repetition"]

1. e4 {[%clk 0:03:00.9]} 1... e5 {[%clk 0:02:59.6]} 2. Nf3 {[%clk 0:02:57.4]}
2... Nc6 {[%clk 0:02:59.9]} 3. Bb5 {[%clk 0:02:57.5]} 3... a6 {[%clk 0:02:59.3]}
4. Bxc6 {[%clk 0:02:58.1]} 4... dxc6 {[%clk 0:02:57.2]} 5. O-O {[%clk
0:02:58.7]} 5... Bg4 {[%clk 0:02:51]} 6. h3 {[%clk 0:02:57.7]} 6... h5 {[%clk
0:02:50]} 7. d3 {[%clk 0:02:57.2]} 7... Qf6 {[%clk 0:02:47.6]} 8. Nbd2 {[%clk
0:02:57.6]} 8... Bd6 {[%clk 0:02:40.5]} 9. Re1 {[%clk 0:02:57.2]} 9... Ne7
{[%clk 0:02:40.9]} 10. d4 {[%clk 0:02:57]} 10... Bxf3 {[%clk 0:02:19.6]} 11.
Nxf3 {[%clk 0:02:55.5]} 11... Ng6 {[%clk 0:02:18.3]} 12. c3 {[%clk 0:02:48.6]}
12... Qe7 {[%clk 0:02:12.7]} 13. dxe5 {[%clk 0:02:36.7]} 13... Nxe5 {[%clk
0:02:12.2]} 14. Nxe5 {[%clk 0:02:36.5]} 14... Bxe5 {[%clk 0:02:12.7]} 15. Be3
{[%clk 0:02:29.3]} 15... Bd6 {[%clk 0:02:10.8]} 16. Bd4 {[%clk 0:02:23.8]} 16...
O-O-O {[%clk 0:02:06.8]} 17. e5 {[%clk 0:02:09.8]} 17... Bc5 {[%clk 0:02:06.9]}
18. Bxc5 {[%clk 0:02:06.7]} 18... Qxc5 {[%clk 0:02:07.8]} 19. Qf3 {[%clk
0:01:59]} 19... Rd2 {[%clk 0:02:03.3]} 20. Re2 {[%clk 0:01:51.7]} 20... Rxe2
{[%clk 0:01:57.3]} 21. Qxe2 {[%clk 0:01:52.6]} 21... Re8 {[%clk 0:01:57.5]} 22.
Re1 {[%clk 0:01:49.1]} 22... g6 {[%clk 0:01:55]} 23. Qe3 {[%clk 0:01:47.7]}
23... Qd5 {[%clk 0:01:34.9]} 24. Qa7 {[%clk 0:01:42.4]} 24... Rxe5 {[%clk
0:01:34.5]} 25. Rxe5 {[%clk 0:01:34.5]} 25... Qxe5 {[%clk 0:01:35.4]} 26. Qa8+
{[%clk 0:01:17.3]} 26... Kd7 {[%clk 0:01:35.1]} 27. Qxb7 {[%clk 0:01:18.2]}
27... Qe1+ {[%clk 0:01:34.5]} 28. Kh2 {[%clk 0:01:18.8]} 28... Qxf2 {[%clk
0:01:33.4]} 29. Qxa6 {[%clk 0:01:18.8]} 29... Qxb2 {[%clk 0:01:33.2]} 30. Qd3+
{[%clk 0:01:14]} 30... Kc8 {[%clk 0:01:31.7]} 31. Qc4 {[%clk 0:01:12.1]} 31...
Kb7 {[%clk 0:00:52]} 32. Qxf7 {[%clk 0:01:06.9]} 32... Qxc3 {[%clk 0:00:52]} 33.
Qxg6 {[%clk 0:01:06.9]} 33... Qe5+ {[%clk 0:00:48.9]} 34. Qg3 {[%clk 0:00:53.7]}
34... Qd4 {[%clk 0:00:30.4]} 35. Qb3+ {[%clk 0:00:51.1]} 35... Ka7 {[%clk
0:00:28.1]} 36. Qf3 {[%clk 0:00:31.8]} 36... c5 {[%clk 0:00:12.8]} 37. Qxh5
{[%clk 0:00:25.5]} 37... c4 {[%clk 0:00:13.1]} 38. Qa5+ {[%clk 0:00:23.9]} 38...
Kb7 {[%clk 0:00:13.2]} 39. Qb5+ {[%clk 0:00:24]} 39... Kc8 {[%clk 0:00:12.6]}
40. Qe8+ {[%clk 0:00:23.3]} 40... Kb7 {[%clk 0:00:12.5]} 41. Qb5+ {[%clk
0:00:23.2]} 41... Ka7 {[%clk 0:00:11.1]} 42. Qa5+ {[%clk 0:00:22.9]} 42... Kb8
{[%clk 0:00:11.5]} 43. Qb5+ {[%clk 0:00:23.5]} 43... Ka8 {[%clk 0:00:11.6]} 44.
Qa4+ {[%clk 0:00:20.6]} 44... Kb8 {[%clk 0:00:10.7]} 45. Qb5+ {[%clk 0:00:20.6]}
45... Kc8 {[%clk 0:00:08]} 46. Qe8+ {[%clk 0:00:20.2]} 46... Kb7 {[%clk
0:00:08.5]} 47. Qb5+ {[%clk 0:00:19.9]} 1/2-1/2